fUSD/lending_fUSD_20240322
["ID","MTS","AMOUNT","RATE_DAILY","PERIOD"]
[320046065,1711114150392,-408.61867044,0.0001746,2]
[320046066,1711114150412,-12484.94124997,0.000175,2]
[320046067,1711114150432,-7800.0,0.000177,6]
[320046068,1711114150451,-2000.0,0.00017719,2]
[320046069,1711114150735,-208.5555,0.00017797,2]
[320046070,1711114150756,-431.718,0.00017797,2]
[320046071,1711114150776,-15892.21696515,0.00017798,2]
[320046072,1711114155094,-1229.95287678,0.00016336,2]
[320046073,1711114155115,-32005.99412322,0.00017798,2]
[320046074,1711114155202,-4262.98861163,0.00017798,2]
[320046075,1711114155225,-2728.01008837,0.00017798,2]
[320046076,1711114173136,-32038.7681,0.00017698,2]
[320046077,1711114173168,-200.61746552,0.00017797,2]
[320046078,1711114173206,-468.39511163,0.00017798,2]
[320046079,1711114173238,-1392.0067,0.00017798,2]
[320046080,1711114173270,-631.43995498,0.00017799,2]
[320046081,1711114173303,-1213.18511956,0.000178,2]
[320046082,1711114173339,-15700.0,0.000178,6]
[320046083,1711114173375,-3000.0,0.0001782,2]
[320046084,1711114173407,-192.02,0.00017888,3]
[320046085,1711114173442,-576.09,0.00017888,3]
[320046086,1711114173517,-444.60502864,0.00017896,2]
[320046087,1711114173565,-175.445164,0.00017896,2]
[320046088,1711114173611,-520.34902049,0.00017896,2]
[320046089,1711114173650,-432.16298453,0.00017896,2]
[320046090,1711114173688,-939.97243792,0.00017896,2]
[320046091,1711114173726,-155.0,0.00017896,2]
[320046092,1711114173760,-3250.15395273,0.00017897,2]
[320046121,1711114232149,-250.0,0.00017576,2]
[320046122,1711114232159,-5.28630239,0.00017808,2]
[320046123,1711114232208,-360.66548261,0.00017808,2]
[320046124,1711114232218,-255.88496955,0.00017896,2]
[320046125,1711114232227,-2908.22728916,0.00017897,2]
[320046126,1711114232240,-4456.86557873,0.00017897,2]
[320046127,1711114232254,-461.57652245,0.00017897,2]
[320046128,1711114232266,-750.93241188,0.00017897,2]
[320046129,1711114232278,-11730.63152098,0.00017897,2]
[320046130,1711114232289,-4363.3644,0.00017898,2]
[320046131,1711114232299,-14831.17027576,0.00017898,2]
[320046132,1711114232310,-287.35083393,0.00017898,2]
[320046133,1711114232337,-182311.23219031,0.00017898,2]
[320046134,1711114232346,-4789.9028,0.000179,2]
[320046135,1711114232356,-500.0,0.000179,2]
[320046136,1711114232365,-7401.41459619,0.000179,2]
[320046137,1711114232374,-23500.0,0.000179,6]
[320046138,1711114232384,-426.3153224,0.000179,2]
[320046139,1711114232393,-181.31584348,0.000179,2]
[320046140,1711114232402,-167.52,0.00017913,2]
[320046141,1711114232412,-343.56,0.00017946,2]
[320046142,1711114232421,-800.0,0.00017973,2]
[320046143,1711114232430,-800.0,0.00017973,2]
[320046144,1711114232439,-800.0,0.00017973,2]
[320046145,1711114232448,-599.27979208,0.00017997,2]
[320046146,1711114232458,-164630.26710321,0.00017998,2]
[320046147,1711114232467,-5148.708862,0.00017998,2]
[320046148,1711114232476,-155.0,0.00017999,2]
[320046149,1711114232486,-1030.38903382,0.00017999,5]
[320046150,1711114232495,-308.18464898,0.00017999,2]
[320046151,1711114232505,-300.0,0.00017999,2]
[320046152,1711114232514,-300.0,0.00017999,2]
[320046153,1711114232524,-300.0,0.00017999,2]
[320046155,1711114232533,-300.0,0.00017999,2]
[320046156,1711114232542,-300.0,0.00017999,2]
[320046157,1711114232552,-300.0,0.00017999,2]
[320046158,1711114232561,-300.0,0.00017999,2]
[320046159,1711114232571,-300.0,0.00017999,2]
[320046160,1711114232581,-300.0,0.00017999,2]
[320046161,1711114232591,-54002.94761904,0.00018,2]
[320046162,1711114232603,-1875.38731659,0.00018,2]
[320046163,1711114232615,-1934.24120179,0.00018,2]
[320046164,1711114232629,-539.3645168,0.00018,2]
[320046165,1711114232642,-284.49703418,0.00018,2]
[320046166,1711114232653,-71118.13999772,0.00018,2]
[320046167,1711114232665,-450.037073,0.00018,2]
[320046168,1711114232691,-4355.89473881,0.00018,2]
[320046169,1711114232743,-521.97670531,0.00018,2]
[320046170,1711114232755,-3852.40405384,0.00018,2]
[320046171,1711114232789,-5702.46836865,0.00018,2]
[320046172,1711114232809,-10240.55461319,0.00018,2]
[320046251,1711114238172,-195.7876562,0.000179,2]
[320046255,1711114238182,-444.2223438,0.00018,2]
[320046265,1711114238211,-30088.51756856,0.00018,2]
[320046269,1711114238226,-349.18197,0.00018,2]
[320046273,1711114238238,-574.98736815,0.00018,2]
[320046279,1711114238251,-7132.147,0.00018,2]
[320046284,1711114238276,-85324.42544269,0.00018,2]
[320046291,1711114238323,-64000.0,0.00018,2]
[320046293,1711114238336,-604966.29493833,0.00018,2]
[320046302,1711114238410,-4295.9824655,0.00018,2]
[320046304,1711114238423,-177317.234495,0.00018,2]
[320046306,1711114238435,-58176.60487797,0.00018,2]
[320046308,1711114238448,-44246.38102882,0.00018,2]
[320046311,1711114238460,-270.88,0.00018,2]
[320046313,1711114238472,-1353.0,0.00018,2]
[320046315,1711114238484,-741.27723955,0.00018,2]
[320046317,1711114238496,-420.8888349,0.00018,2]
[320046321,1711114238517,-404.64145571,0.00018,2]
[320046323,1711114238530,-616.38,0.00018,2]
[320046331,1711114238565,-121875.06444127,0.00018,2]
[320046412,1711114240334,-344.59,0.00018,2]
[320046413,1711114240347,-52534.429485,0.00018,2]
[320046414,1711114240456,-257276.17346672,0.00018,2]
[320046415,1711114240600,-1097.35436713,0.00018,2]
[320046416,1711114240613,-6384.00000001,0.00018,2]
[320046417,1711114240625,-458.28278652,0.00018,2]
[320046432,1711114243219,-195.78765618,0.00017905,2]
[320046433,1711114243229,-161034.89048668,0.00018,2]
[320046434,1711114243238,-114523.31688734,0.00018,2]
[320046435,1711114243248,-1251.84359666,0.00018,2]
[320046436,1711114243257,-1545.88593721,0.00018,2]
[320046437,1711114243269,-412.32698279,0.00018,2]
[320046438,1711114243279,-360.0,0.00018027,2]
[320046439,1711114243288,-1054.92577415,0.00018138,2]
[320046440,1711114243297,-1176.57011127,0.00018318,2]
[320046441,1711114243306,-208.24,0.00018451,2]
[320046442,1711114243316,-640.0,0.00018558,2]
[320046443,1711114243325,-507.54,0.00018611,2]
[320046444,1711114243335,-2284.13,0.00018618,2]
[320046445,1711114243344,-365.951785,0.0001863,2]
[320046446,1711114243353,-426.3153224,0.00018647,2]
[320046447,1711114243362,-331.61,0.00018782,2]
[320046448,1711114243373,-3475.0,0.000188,2]
[320046449,1711114243382,-7401.41459609,0.00018829,2]
[320046450,1711114243393,-31400.0,0.000189,6]
[320046451,1711114243402,-750.0,0.000189,2]
[320046452,1711114243411,-1213.18511951,0.00018947,2]
[320046453,1711114243421,-150.0,0.00018961,2]
[320046454,1711114243430,-518.89320209,0.00019178,2]
[320046455,1711114243439,-500.0,0.00019178,2]
[320046456,1711114243449,-296.64526819,0.00019178,2]
[320046457,1711114243458,-500.0,0.00019178,2]
[320046458,1711114243467,-500.0,0.00019178,2]
[320046459,1711114243477,-500.0,0.00019178,2]
[320046460,1711114243487,-500.0,0.00019178,2]
[320046461,1711114243496,-500.0,0.00019178,2]
[320046462,1711114243506,-190.36776457,0.00019178,2]
[320046463,1711114243515,-500.0,0.00019178,2]
[320046464,1711114243525,-550.0,0.00019178,2]
[320046465,1711114243535,-187.35292209,0.00019178,2]
[320046466,1711114243544,-500.0,0.00019178,2]
[320046467,1711114243554,-500.0,0.00019178,2]
[320046468,1711114243563,-439.53165588,0.00019178,2]
[320046469,1711114243573,-189.10173792,0.00019178,2]
[320046470,1711114243583,-393.16398276,0.00019178,2]
[320046471,1711114243593,-234.73942946,0.00019178,2]
[320046472,1711114243603,-5000.0,0.00019178,2]
[320046473,1711114243612,-805.75,0.000192,2]
[320046474,1711114243621,-384.04,0.00019258,3]
[320046475,1711114243631,-180.0,0.00019288,2]
[320046476,1711114243644,-426.3153224,0.00019393,2]
[320046477,1711114243653,-365.951785,0.00019452,2]
[320046478,1711114243663,-552.86958668,0.00019612,2]
[320046479,1711114243673,-7401.41459609,0.00019758,2]
[320046480,1711114243683,-219.25130826,0.00019794,2]
[320046481,1711114243692,-563627.40174703,0.0001988,2]
[320046482,1711114243705,-63999.99999998,0.0001988,2]
[320046483,1711114243721,-12824.3192,0.0001988,2]
[320046484,1711114243744,-5194.01282932,0.0001988,2]
[320046485,1711114243755,-4772.91481306,0.0001988,2]
[320046486,1711114243767,-6834.3414779,0.0001988,2]
[320046487,1711114243778,-1157.38370649,0.0001988,2]
[320046489,1711114243813,349.5874428,0.00013423,2]
[320046493,1711114243846,-9593.4,0.0001988,2]
[320046494,1711114244610,-319.14,0.0001988,2]
[320046495,1711114244622,-2256.16173087,0.0001988,2]
[320046496,1711114244646,-3167.07951647,0.0001988,2]
[320046497,1711114244658,-7490.61755638,0.0001988,2]
[320046498,1711114244670,-5486.57447542,0.0001988,2]
[320046499,1711114244681,-2984.76089622,0.0001988,2]
[320046500,1711114244694,-2929.151413,0.0001988,2]
[320046501,1711114244706,-20043.93545602,0.0001988,2]
[320046541,1711114247292,-195.78765618,0.0001801,2]
[320046543,1711114247303,-69.21185169,0.00019178,2]
[320046550,1711114247359,-430.78814831,0.00019178,2]
[320046552,1711114247369,-208.85500557,0.00019178,2]
[320046558,1711114247483,-281.14499443,0.00019178,2]
[320046559,1711114247493,-2623.72326516,0.0001988,2]
[320046560,1711114247504,-150151.6229779,0.0001988,2]
[320046561,1711114247540,-6391.385,0.0001988,2]
[320046562,1711114247553,-320466.46280005,0.0001988,2]
[320046563,1711114247565,-94828.58044274,0.0001988,2]
[320046564,1711114247609,-23342.06925567,0.0001988,2]
[320046574,1711114317127,176.19,0.00014707,2]
[320046577,1711114982742,170.96,0.00025118,120]
[320046579,1711115340359,528.54,0.00014364,2]
[320046580,1711115343722,2062.36318757,0.00026042,60]
[320046581,1711115349128,-155.0,0.00015281,2]
[320046582,1711115349149,-407.12895338,0.00015282,2]
[320046583,1711115349170,-3360.64209275,0.00015283,2]
[320046584,1711115349191,-2166.55459343,0.00015283,2]
[320046585,1711115349214,-2976.15624937,0.00015284,2]
[320046586,1711115349234,-560.0498622,0.00015285,2]
[320046587,1711115349254,-535.66375841,0.00015285,2]
[320046588,1711115349274,-150.0,0.00015286,2]
[320046589,1711115349293,-331.95445473,0.00015295,2]
[320046590,1711115349314,-331.95445473,0.00015295,2]
[320046591,1711115349334,-331.95445473,0.00015295,2]
[320046592,1711115349353,-331.95445473,0.00015295,2]
[320046593,1711115349373,-170.67204046,0.00016206,2]
[320046594,1711115349393,-208.25,0.00016341,2]
[320046595,1711115349413,-2122.61,0.00016378,2]
[320046596,1711115349434,-167.21,0.00016468,2]
[320046597,1711115349457,-1641.01,0.00016488,2]
[320046598,1711115349477,-1217.46787321,0.00016514,2]
[320046599,1711115349497,-250.0,0.00016515,2]
[320046600,1711115349519,-528.54,0.00016628,2]
[320046601,1711115349541,-250.0,0.00016651,2]
[320046602,1711115349564,-216.0,0.00016698,2]
[320046603,1711115349584,-150.0,0.00016712,2]
[320046604,1711115349603,-170.55,0.00016712,2]
[320046605,1711115349627,-170.96,0.00016745,2]
[320046606,1711115349646,-1441.39,0.00016816,2]
[320046607,1711115349668,-2759.56,0.00016832,2]
[320046608,1711115349688,-499.99,0.00017266,2]
[320046609,1711115349711,-167.0,0.00017585,2]
[320046610,1711115349731,-2000.0,0.0001763,2]
[320046611,1711115349752,-1381.86533253,0.00017697,2]
[320046612,1711115349774,-2885.1976,0.00017698,2]
[320046613,1711115349795,-18872.81682534,0.00017698,2]
[320046614,1711115359102,-163.55613287,0.00015183,2]
[320046615,1711115370049,2056.47379411,0.00016815,2]
[320046628,1711115432337,-155.0,0.00017696,2]
[320046629,1711115432347,-528.39504558,0.00017697,2]
[320046630,1711115432357,-241.47809661,0.00017697,2]
[320046631,1711115432366,-13601.25735047,0.00017698,2]
[320046632,1711115432882,-1587.88308601,0.00017698,2]
[320046633,1711115432894,-487.473,0.00017698,2]
[320046634,1711115432905,-5217.28613818,0.00017698,2]
[320046635,1711115432914,-1216.70265716,0.00017793,2]
[320046636,1711115432924,-351.50317863,0.00017794,2]
[320046637,1711115432933,-186.13768506,0.00017794,2]
[320046638,1711115432943,-2974.94968194,0.00017794,2]
[320046639,1711115432952,-3359.5909251,0.00017794,2]
[320046640,1711115432962,-323.64473252,0.00017795,2]
[320046641,1711115432972,-217.6816873,0.00017795,7]
[320046642,1711115432982,-205.4134644,0.00017795,2]
[320046643,1711115432991,-198.99790327,0.00017795,2]
[320046644,1711115433001,-11118.49194644,0.00017795,2]
[320046645,1711115433034,-549.53477797,0.00017795,2]
[320046646,1711115433046,-381.408,0.00017795,2]
[320046647,1711115433067,-428.20941496,0.00017795,2]
[320046648,1711115433077,-205.06000324,0.00017795,2]
[320046649,1711115433086,-1241.94385803,0.00017795,2]
[320046650,1711115433100,-146386.38669641,0.00017795,2]
[320046651,1711115433109,-1000.0,0.00017796,2]
[320046652,1711115433118,-654.48701067,0.00017796,5]
[320046653,1711115433128,-184.13623079,0.00017796,2]
[320046654,1711115433137,-62503.872,0.00017797,2]
[320046655,1711115433146,-1000.0,0.00017797,2]
[320046656,1711115433156,-500.0,0.00017797,2]
[320046657,1711115433166,-14190.37,0.00017797,2]
[320046658,1711115433175,-14190.37,0.00017797,2]
[320046659,1711115433185,-14190.37,0.00017797,2]
[320046660,1711115433194,-14190.37,0.00017797,2]
[320046661,1711115433203,-14190.37,0.00017797,2]
[320046662,1711115433213,-14190.37,0.00017797,2]
[320046702,1711115433511,-14190.37,0.00017797,2]
[320046704,1711115433522,-14190.37,0.00017797,2]
[320046706,1711115433531,-14190.37,0.00017797,2]
[320046708,1711115433542,-6479.66036701,0.00017797,2]
[320046710,1711115433554,-318.00474,0.00017797,2]
[320046715,1711115433587,-7392.70489299,0.00017797,2]
[320046717,1711115433596,-14190.37,0.00017797,2]
[320046719,1711115433605,-14190.37,0.00017797,2]
[320046721,1711115433616,-14190.37,0.00017797,2]
[320046723,1711115433625,-14190.37,0.00017797,2]
[320046725,1711115433634,-14190.37,0.00017797,2]
[320046727,1711115433643,-14190.37,0.00017797,2]
[320046729,1711115433653,-14190.37,0.00017797,2]
[320046731,1711115433662,-14190.37,0.00017797,2]
[320046733,1711115433671,-14190.37,0.00017797,2]
[320046735,1711115433681,-14190.37,0.00017797,2]
[320046737,1711115433690,-14190.37,0.00017797,2]
[320046739,1711115433699,-14190.37,0.00017797,2]
[320046741,1711115433709,-14190.37,0.00017797,2]
[320046742,1711115433719,-14190.60068267,0.00017797,2]
[320046743,1711115433728,-191854.27304632,0.00017798,2]
[320046744,1711115433741,-3695.68245877,0.00017798,2]
[320046745,1711115433753,-31808.96199261,0.00017798,2]
[320046746,1711115433777,-651.06651555,0.00017798,2]
[320046747,1711115433789,-720.48790123,0.00017798,2]
[320046748,1711115433800,-753.08526197,0.00017798,2]
[320046749,1711115433811,-718.2001506,0.00017798,2]
[320046750,1711115433822,-14798.24267295,0.00017798,2]
[320046751,1711115433831,-426.70944472,0.0001783,2]
[320046752,1711115433841,-167.52,0.00017866,2]
[320046753,1711115433851,-482.77788233,0.000179,6]
[320046754,1711115433865,-3726.26325819,0.000179,6]
[320046858,1711115438558,251.69,0.0002511,120]
[320046859,1711115438581,-331.72167273,0.00017695,2]
[320046861,1711115438593,-290.95885948,0.000179,6]
[320046863,1711115438606,-358.56856939,0.000179,2]
[320046865,1711115438619,-358.56856923,0.000179,2]
[320046867,1711115438630,-358.56856923,0.00017915,2]
[320046869,1711115438643,-292.21,0.0001793,2]
[320046872,1711115438655,-300.0,0.00017999,2]
[320046873,1711115438667,-300.0,0.00017999,2]
[320046875,1711115438677,-300.0,0.00017999,2]
[320046877,1711115438688,-300.0,0.00017999,2]
[320046879,1711115438698,-300.0,0.00017999,2]
[320046881,1711115438709,-300.0,0.00017999,2]
[320046883,1711115438719,-300.0,0.00017999,2]
[320046885,1711115438729,-300.0,0.00017999,2]
[320046887,1711115438739,-300.0,0.00017999,2]
[320046889,1711115438749,-358.56856923,0.00018025,2]
[320046891,1711115438760,-358.56856923,0.00018135,2]
[320046894,1711115438770,-784.0,0.00018243,2]
[320046896,1711115438790,-358.56856923,0.00018244,2]
[320046898,1711115438802,-251.69,0.00018262,2]
[320046900,1711115438812,-426.70944469,0.00018318,2]
[320046902,1711115438823,-358.56856923,0.00018354,2]
[320046904,1711115438834,-478.880788,0.00018356,2]
[320046906,1711115438845,-358.56856923,0.00018464,2]
[320046907,1711115438856,-358.56856923,0.00018573,2]
[320046910,1711115438867,-358.56856923,0.00018683,2]
[320046912,1711115438879,-167.0,0.00018761,2]
[320046914,1711115438890,-216.0,0.00018786,2]
[320046917,1711115438901,-358.56856923,0.00018793,2]
[320046920,1711115438913,-426.70944469,0.00018805,2]
[320046924,1711115438927,-159.06,0.00018832,10]
[320046927,1711115438939,-309.58218223,0.00018884,2]
[320046930,1711115438951,-528.54,0.00018892,2]
[320046933,1711115438962,-358.56856923,0.00018903,2]
[320046936,1711115438973,-358.56856923,0.00019012,2]
[320046938,1711115438984,-2122.61,0.00019117,2]
[320046940,1711115438995,-358.56856923,0.00019122,2]
[320046942,1711115439005,-155.22218572,0.00019177,2]
[320046945,1711115439016,-156.95529,0.00019177,2]
[320046949,1711115439040,-3059.21992612,0.00019177,2]
[320046951,1711115439050,-500.0,0.00019178,2]
[320046953,1711115439061,-325.73122628,0.00019178,2]
[320046957,1711115439072,-639.64315388,0.00019178,2]
[320046960,1711115439082,-478.880788,0.00019178,2]
[320046962,1711115439093,-320.14,0.0001918,2]
[320046964,1711115439103,-320.14,0.0001918,2]
[320046966,1711115439114,-320.14,0.0001918,2]
[320046968,1711115439126,-320.14,0.0001918,2]
[320046970,1711115439138,-3843.36723217,0.000192,2]
[320046972,1711115439149,-1134.39744523,0.00019214,2]
[320046974,1711115439160,-358.56856923,0.00019232,2]
[320046976,1711115439171,-426.70944469,0.00019293,2]
[320046978,1711115439182,-358.56856923,0.00019341,2]
[320046980,1711115439193,-358.56856923,0.00019451,2]
[320046982,1711115439205,-1134.39744523,0.00019531,2]
[320046984,1711115439216,-358.56856923,0.00019561,2]
[320046986,1711115439227,-9100.0,0.000196,7]
[320046988,1711115439242,-358.56856923,0.0001967,2]
[320046990,1711115439254,-455.0,0.00019671,2]
[320046992,1711115439264,-249.65614262,0.00019679,2]
[320046994,1711115439281,-167.6272744,0.0001969,2]
[320046996,1711115439293,-718.61539143,0.000197,3]
[320046998,1711115439304,-13700.0,0.000197,7]
[320047000,1711115439314,-163.55613287,0.00019778,2]
[320047002,1711115439326,-6823.93657302,0.0001978,2]
[320047004,1711115439336,-183.17408248,0.0001978,2]
[320047007,1711115439346,-7500.0,0.0001978,2]
[320047008,1711115439358,-426.70944469,0.0001978,2]
[320047009,1711115439369,-1086.32427724,0.0001978,2]
[320047010,1711115439381,-358.56856923,0.0001978,2]
[320047012,1711115439393,-501.29835015,0.0001978,2]
[320047014,1711115439403,-183.2945217,0.0001978,2]
[320047015,1711115439414,-14273.10533819,0.000198,7]
[320047016,1711115439613,-3926.89466181,0.000198,7]
[320047017,1711115439624,-10003.04884584,0.000198,4]
[320047018,1711115439634,-167.6272744,0.0001987,2]
[320047019,1711115439645,-320.14,0.0001987,2]
[320047020,1711115439655,-320.14,0.0001987,2]
[320047021,1711115439665,-320.14,0.0001987,2]
[320047022,1711115439675,-320.14,0.0001987,2]
[320047023,1711115439685,-320.14,0.0001987,2]
[320047024,1711115439695,-320.14,0.0001987,2]
[320047025,1711115439705,-680.18191037,0.00019878,2]
[320047026,1711115439714,-165.4144367,0.00019878,2]
[320047027,1711115439723,-7748.85072808,0.00019878,2]
[320047028,1711115439733,-260.41477377,0.00019878,2]
[320047029,1711115439743,-155.42659233,0.00019878,2]
[320047030,1711115439753,-613.55627316,0.00019878,2]
[320047031,1711115439763,-2342.82778821,0.00019878,2]
[320047032,1711115439774,-155.0,0.00019878,2]
[320047033,1711115439788,-400.0,0.00019878,2]
[320047034,1711115439798,-524.84529102,0.00019878,2]
[320047035,1711115439808,-454.39087983,0.00019878,2]
[320047036,1711115439818,-340.65943347,0.00019878,2]
[320047037,1711115439828,-160.02244666,0.00019878,2]
[320047038,1711115439837,-235.9342099,0.00019878,2]
[320047039,1711115439848,-155.0,0.00019878,2]
[320047040,1711115439857,-259.0768041,0.00019878,2]
[320047041,1711115439868,-4377.25026004,0.00019878,2]
[320047042,1711115439877,-333.87905145,0.00019878,2]
[320047043,1711115439885,-2061.89147699,0.00019878,2]
[320047044,1711115439891,-155.0,0.00019878,2]
[320047045,1711115439898,-860.06772857,0.00019878,2]
[320047046,1711115439906,-315.49159155,0.00019879,2]
[320047047,1711115439912,-155.45967189,0.00019879,2]
[320047048,1711115439921,-222.3828009,0.00019879,2]
[320047049,1711115439928,-341.41940066,0.00019879,2]
[320047050,1711115439934,-500.0,0.00019879,2]
[320047051,1711115439942,-500.0,0.00019879,2]
[320047052,1711115439950,-440.31212541,0.00019879,2]
[320047053,1711115439960,-2707.67088461,0.0001988,2]
[320047054,1711115439989,-307.0,0.0001988,2]
[320047055,1711115440001,-33674.84777303,0.0001988,2]
[320047056,1711115440011,-16548.29405272,0.0001988,2]
[320047057,1711115440022,-20161.78226004,0.0001988,2]
[320047058,1711115440067,-3398.95352824,0.0001988,2]
[320047059,1711115440083,-213388.0830794,0.0001988,2]
[320047060,1711115440096,-610.89968739,0.0001988,2]
[320047062,1711115440109,-24067.41070119,0.0001988,2]
[320047063,1711115440120,-2786.36783271,0.0001988,2]
[320047064,1711115440142,-1594.043472,0.0001988,2]
[320047065,1711115440154,-1010.03,0.0001988,2]
[320047066,1711115440167,-2545.9522256,0.0001988,2]
[320047067,1711115440180,-376.0945,0.0001988,2]
[320047068,1711115440224,-1904.03,0.0001988,2]
[320047108,1711115440723,-3362.0,0.0001988,2]
[320047110,1711115440735,-854.9999999,0.0001988,2]
[320047112,1711115440747,-444347.90446304,0.0001988,2]
[320047113,1711115440759,-15875.00000001,0.0001988,2]
[320047114,1711115440773,-481874.65685224,0.0001988,2]
[320047122,1711115440854,-708.56416746,0.0001988,2]
[320047124,1711115440871,-3059.17987268,0.0001988,2]
[320047127,1711115440882,-7921.9279126,0.0001988,2]
[320047129,1711115440895,-13134.69999999,0.0001988,2]
[320047131,1711115440907,-309.12639055,0.0001988,2]
[320047133,1711115440920,-68565.172557,0.0001988,2]
[320047136,1711115440933,-12143.6315,0.0001988,2]
[320047138,1711115440945,-66345.40966424,0.0001988,2]
[320047140,1711115440956,-6462.5,0.0001988,2]
[320047147,1711115441029,-2278906.25939923,0.0001988,2]
[320047148,1711115441038,-2000.0,0.0001988,2]
[320047149,1711115441048,-200.0,0.0001988,2]
[320047150,1711115441058,-2000.0,0.0001988,2]
[320047151,1711115441068,-200.0,0.0001988,2]
[320047152,1711115441078,-3000.0,0.0001988,2]
[320047153,1711115441087,-4529.18467821,0.000199,3]
[320047154,1711115441097,-725.18,0.000199,2]
[320047155,1711115441106,-22800.0,0.000199,7]
[320047156,1711115441115,-343.56,0.0001994,2]
[320047157,1711115441125,-590.61224363,0.0002,2]
[320047158,1711115441134,-5146.55055849,0.0002,2]
[320047159,1711115441144,-816.03719669,0.0002,2]
[320047160,1711115441154,-5000.0,0.0002,2]
[320047161,1711115441163,-1755.61791887,0.0002,2]
[320047162,1711115441173,-931.0,0.0002,2]
[320047163,1711115441182,-5000.0,0.0002,7]
[320047164,1711115441190,-513.49746767,0.0002,2]
[320047165,1711115441199,-286.80665938,0.0002,2]
[320047166,1711115441208,-155.0,0.0002,2]
[320047167,1711115441217,-854.24216831,0.0002,2]
[320047168,1711115441226,-155.0,0.0002,2]
[320047169,1711115441235,-195.10224398,0.0002,2]
[320047170,1711115441244,-2340.09314457,0.0002,2]
[320047171,1711115441253,-155.0,0.0002,2]
[320047172,1711115441263,-185.18751745,0.0002,2]
[320047173,1711115441272,-400.0,0.0002,2]
[320047174,1711115441288,-478.880788,0.0002,2]
[320047175,1711115441299,-1134.39744523,0.0002002,2]
[320047176,1711115441308,-2000.0,0.00020079,2]
[320047177,1711115441318,-200.0,0.00020079,2]
[320047178,1711115441327,-2000.0,0.00020079,2]
[320047179,1711115441336,-200.0,0.00020079,2]
[320047180,1711115441346,-702.79,0.000201,2]
[320047181,1711115441355,-200.0,0.0002028,2]
[320047182,1711115441365,-2000.0,0.0002028,2]
[320047183,1711115441374,-200.0,0.0002028,2]
[320047184,1711115441384,-1134.39744525,0.00020356,2]
[320047185,1711115441393,-215.0,0.0002036,2]
[320047186,1711115441403,-1100.70696188,0.00020419,2]
[320047187,1711115441412,-200.0,0.00020482,2]
[320047188,1711115441422,-2000.0,0.00020482,2]
[320047189,1711115441431,-784.0,0.00020524,2]
[320047190,1711115441440,-6823.93657301,0.00020538,2]
[320047191,1711115441450,-251.69,0.00020544,2]
[320047192,1711115441459,-1000.0,0.0002065,2]
[320047193,1711115441468,-200.0,0.00020687,2]
[320047194,1711115441477,-2000.0,0.00020687,2]
[320047195,1711115441486,-214.5273441,0.00020759,2]
[320047196,1711115441495,-167.8814488,0.0002079,2]
[320047197,1711115441504,-7348.02726629,0.0002079,2]
[320047198,1711115441513,-7348.02726621,0.0002079,2]
[320047199,1711115441522,-7348.02726621,0.0002079,2]
[320047200,1711115441536,-7348.02726621,0.0002079,2]
[320047201,1711115441548,-27668.19509568,0.0002079,2]
[320047202,1711115441557,-27668.19509561,0.0002079,2]
[320047203,1711115441567,-27668.19509561,0.0002079,2]
[320047204,1711115441577,-27668.19509561,0.0002079,2]
[320047205,1711115441587,-300.0,0.00020799,2]
[320047206,1711115441598,-478.880788,0.00020822,2]
[320047207,1711115441608,-2000.0,0.00020833,2]
[320047208,1711115441617,-216.0,0.00020873,2]
[320047209,1711115441626,-155.35946196,0.00020893,2]
[320047210,1711115441636,-4500.0,0.000209,7]
[320047211,1711115441645,-455.0,0.00020931,2]
[320047212,1711115441655,-300.0,0.00020979,2]
[320047213,1711115441665,-300.0,0.00020979,2]
[320047214,1711115441676,-300.0,0.00020979,2]
[320047215,1711115441686,-373.46670002,0.00020979,2]
[320047216,1711115441697,-727610.16136861,0.0002098,2]
[320047217,1711115441706,-493.5976,0.00020986,2]
[320047218,1711115441716,-191.37408895,0.00020998,2]